[Event "GrandPrix_30.05"]
[Site "Chess.com"]
[Date "2020.05.30"]
[Round "7"]
[White "Glek_Igor"]
[Black "switlave"]
[Result "1/2-1/2"]
[WhiteElo "2439"]
[BlackElo "2279"]
[TimeControl "600+2"]
[EndTime "11:30:05 PDT"]
[Termination "Game drawn by repetition"]

1. e4 {[%clk 0:09:58.8]} 1... c6 {[%clk 0:09:49.6]} 2. c4 {[%clk 0:09:56.7]}
2... d5 {[%clk 0:09:48]} 3. cxd5 {[%clk 0:09:58.2]} 3... cxd5 {[%clk 0:09:49.5]}
4. exd5 {[%clk 0:09:59.8]} 4... Nf6 {[%clk 0:09:50.2]} 5. Nc3 {[%clk 0:10:01.2]}
5... Nxd5 {[%clk 0:09:46.1]} 6. Nf3 {[%clk 0:10:02.6]} 6... Nc6 {[%clk
0:09:34.8]} 7. Bb5 {[%clk 0:10:03]} 7... e6 {[%clk 0:08:57.5]} 8. O-O {[%clk
0:10:02.2]} 8... Be7 {[%clk 0:08:42.1]} 9. d4 {[%clk 0:10:03.6]} 9... O-O {[%clk
0:08:42.3]} 10. Re1 {[%clk 0:10:05]} 10... Bf6 {[%clk 0:08:08.5]} 11. Bxc6
{[%clk 0:10:00.9]} 11... bxc6 {[%clk 0:07:28.3]} 12. Ne4 {[%clk 0:10:01.3]}
12... a5 {[%clk 0:06:46.4]} 13. Bg5 {[%clk 0:09:23.7]} 13... Bxg5 {[%clk
0:06:23.6]} 14. Nexg5 {[%clk 0:09:22.2]} 14... h6 {[%clk 0:05:58.8]} 15. Ne4
{[%clk 0:09:20.8]} 15... Qb6 {[%clk 0:05:59.8]} 16. b3 {[%clk 0:08:31.3]} 16...
a4 {[%clk 0:05:39]} 17. Rc1 {[%clk 0:08:28.1]} 17... axb3 {[%clk 0:05:35]} 18.
axb3 {[%clk 0:08:27.9]} 18... Rb8 {[%clk 0:05:16.5]} 19. Nc5 {[%clk 0:08:24.5]}
19... Rd8 {[%clk 0:05:16.6]} 20. Ne5 {[%clk 0:08:12.7]} 20... Ne7 {[%clk
0:04:57.1]} 21. Qh5 {[%clk 0:07:56.3]} 21... Rf8 {[%clk 0:04:30.9]} 22. Ned7
{[%clk 0:07:51.7]} 22... Bxd7 {[%clk 0:04:31.3]} 23. Nxd7 {[%clk 0:07:52.7]}
23... Qxb3 {[%clk 0:04:17.2]} 24. Qc5 {[%clk 0:07:21.2]} 24... Nf5 {[%clk
0:04:07.7]} 25. Nxf8 {[%clk 0:07:16.4]} 25... Rxf8 {[%clk 0:04:07]} 26. Rb1
{[%clk 0:06:34.2]} 26... Qd5 {[%clk 0:04:02.6]} 27. Rb4 {[%clk 0:05:19.7]} 27...
h5 {[%clk 0:03:25]} 28. h3 {[%clk 0:04:49]} 28... h4 {[%clk 0:03:12.8]} 29. Re5
{[%clk 0:04:35.2]} 29... Qd7 {[%clk 0:03:13.5]} 30. Qb6 {[%clk 0:03:16.5]} 30...
Rd8 {[%clk 0:03:01.5]} 31. Re4 {[%clk 0:02:28.6]} 31... Kh7 {[%clk 0:02:56]} 32.
Rc4 {[%clk 0:02:15.5]} 32... Rc8 {[%clk 0:02:16.6]} 33. Rc5 {[%clk 0:02:04.5]}
33... Kg8 {[%clk 0:02:03.1]} 34. Ra5 {[%clk 0:01:45.7]} 34... Qd6 {[%clk
0:01:34.5]} 35. Qb7 {[%clk 0:01:35.2]} 35... Rb8 {[%clk 0:01:30.2]} 36. Ra8
{[%clk 0:01:35.4]} 36... Rxa8 {[%clk 0:01:31.8]} 37. Qxa8+ {[%clk 0:01:36.8]}
37... Kh7 {[%clk 0:01:33.7]} 38. Qe8 {[%clk 0:01:25.7]} 38... Qc7 {[%clk
0:01:23.6]} 39. Qf8 {[%clk 0:01:16.2]} 39... Qb7 {[%clk 0:01:20.5]} 40. Rg4
{[%clk 0:01:08]} 40... Qc7 {[%clk 0:01:09.7]} 41. Qc5 {[%clk 0:01:01.9]} 41...
Qd7 {[%clk 0:01:08.6]} 42. Qe5 {[%clk 0:00:59.3]} 42... Qb7 {[%clk 0:01:06.8]}
43. Qe4 {[%clk 0:00:55.1]} 43... Kg8 {[%clk 0:01:04.1]} 44. Qf4 {[%clk
0:00:38.6]} 44... Qb6 {[%clk 0:00:55.1]} 45. Qe5 {[%clk 0:00:38.3]} 45... Qb7
{[%clk 0:00:47.1]} 46. Kh2 {[%clk 0:00:35.7]} 46... Qb6 {[%clk 0:00:46.3]} 47.
Re4 {[%clk 0:00:35.4]} 47... Qb2 {[%clk 0:00:41.9]} 48. Rf4 {[%clk 0:00:33.8]}
48... Qc2 {[%clk 0:00:26.2]} 49. Qc5 {[%clk 0:00:28.6]} 49... Qd2 {[%clk
0:00:21.5]} 50. Rg4 {[%clk 0:00:27.4]} 50... Qxf2 {[%clk 0:00:18.3]} 51. Qxc6
{[%clk 0:00:25.9]} 51... Nxd4 {[%clk 0:00:13.1]} 52. Qa8+ {[%clk 0:00:20.5]}
52... Kh7 {[%clk 0:00:12.7]} 53. Qe4+ {[%clk 0:00:19.4]} 53... Nf5 {[%clk
0:00:13.9]} 54. Rf4 {[%clk 0:00:19.9]} 54... Qg3+ {[%clk 0:00:14]} 55. Kh1
{[%clk 0:00:19.4]} 55... g6 {[%clk 0:00:15.2]} 56. Rg4 {[%clk 0:00:19]} 56...
Qf2 {[%clk 0:00:13.5]} 57. Qb7 {[%clk 0:00:14.6]} 57... Ng3+ {[%clk 0:00:08.7]}
58. Kh2 {[%clk 0:00:15.6]} 58... Nf1+ {[%clk 0:00:09.8]} 59. Kh1 {[%clk
0:00:16.6]} 59... Ng3+ {[%clk 0:00:10]} 60. Kh2 {[%clk 0:00:17.7]} 60... Nf1+
{[%clk 0:00:05]} 61. Kh1 {[%clk 0:00:18.4]} 61... Ng3+ {[%clk 0:00:05.7]}
1/2-1/2

[Event "GrandPrix_30.05"]
[Site "Chess.com"]
[Date "2020.05.30"]
[Round "7"]
[White "cassoulet"]
[Black "Evgeny81"]
[Result "0-1"]
[WhiteElo "2206"]
[BlackElo "2412"]
[TimeControl "600+2"]
[EndTime "11:30:07 PDT"]
[Termination "Evgeny81 won by resignation"]

1. e4 {[%clk 0:08:18]} 1... e5 {[%clk 0:09:07.3]} 2. Nf3 {[%clk 0:08:15.2]} 2...
Nc6 {[%clk 0:09:08.7]} 3. Bc4 {[%clk 0:08:15.7]} 3... Nf6 {[%clk 0:09:09.5]} 4.
d3 {[%clk 0:08:16.8]} 4... Be7 {[%clk 0:09:10.3]} 5. O-O {[%clk 0:08:17.2]} 5...
d6 {[%clk 0:09:11.5]} 6. h3 {[%clk 0:08:17.7]} 6... Na5 {[%clk 0:09:07.8]} 7.
Bb3 {[%clk 0:08:15.8]} 7... Nxb3 {[%clk 0:09:06.3]} 8. axb3 {[%clk 0:08:17.7]}
8... O-O {[%clk 0:09:06.3]} 9. Nc3 {[%clk 0:08:18.7]} 9... c5 {[%clk 0:08:58.9]}
10. Be3 {[%clk 0:08:08.9]} 10... Re8 {[%clk 0:08:49.9]} 11. Qd2 {[%clk
0:08:08.5]} 11... Bd7 {[%clk 0:08:43.3]} 12. Nh2 {[%clk 0:08:04.4]} 12... Bc6
{[%clk 0:08:36.7]} 13. f4 {[%clk 0:08:04.1]} 13... exf4 {[%clk 0:08:37.6]} 14.
Bxf4 {[%clk 0:08:00.1]} 14... d5 {[%clk 0:08:35.9]} 15. e5 {[%clk 0:07:48.2]}
15... Nd7 {[%clk 0:08:35.5]} 16. Qf2 {[%clk 0:07:12.9]} 16... Bf8 {[%clk
0:08:18.7]} 17. Rae1 {[%clk 0:06:59.9]} 17... Re6 {[%clk 0:08:07.8]} 18. Bg3
{[%clk 0:06:26.1]} 18... Qe8 {[%clk 0:07:46.9]} 19. Nf3 {[%clk 0:06:23.9]} 19...
f6 {[%clk 0:06:59.2]} 20. exf6 {[%clk 0:06:03.4]} 20... Nxf6 {[%clk 0:06:58.4]}
21. Ne2 {[%clk 0:05:51.6]} 21... Nh5 {[%clk 0:05:41.2]} 22. Bh2 {[%clk
0:05:18.1]} 22... d4 {[%clk 0:05:34.7]} 23. Ng5 {[%clk 0:04:02.3]} 23... Rf6
{[%clk 0:05:06.1]} 24. Nf4 {[%clk 0:03:23.9]} 24... Nxf4 {[%clk 0:05:05.6]} 25.
Bxf4 {[%clk 0:02:42.3]} 25... Qg6 {[%clk 0:04:57.8]} 26. Qg3 {[%clk 0:02:33.9]}
26... Re8 {[%clk 0:04:38.6]} 27. Rxe8 {[%clk 0:02:29.2]} 27... Qxe8 {[%clk
0:04:38.6]} 28. Re1 {[%clk 0:02:09.5]} 28... Qg6 {[%clk 0:04:32.8]} 29. Ne4
{[%clk 0:01:53.6]} 29... Re6 {[%clk 0:04:09.8]} 30. Ng5 {[%clk 0:01:37.1]} 30...
Rxe1+ {[%clk 0:04:04]} 31. Qxe1 {[%clk 0:01:39]} 31... h6 {[%clk 0:03:56.1]} 32.
Qe6+ {[%clk 0:01:20.2]} 32... Qxe6 {[%clk 0:03:56.8]} 33. Nxe6 {[%clk
0:01:22.1]} 33... Be7 {[%clk 0:03:58.2]} 34. Bb8 {[%clk 0:01:14.9]} 34... Kf7
{[%clk 0:03:19.4]} 35. Nf4 {[%clk 0:01:16]} 35... a6 {[%clk 0:03:04.3]} 36. Ne2
{[%clk 0:01:09.2]} 36... Ke6 {[%clk 0:02:53.8]} 37. b4 {[%clk 0:01:09.2]} 37...
g5 {[%clk 0:00:58.2]} 38. Ba7 {[%clk 0:00:55]} 38... Kd5 {[%clk 0:00:53.1]} 39.
Kf2 {[%clk 0:00:55.8]} 39... Bd7 {[%clk 0:00:47.1]} 40. bxc5 {[%clk 0:00:46.8]}
40... Bxc5 {[%clk 0:00:48.3]} 41. Bxc5 {[%clk 0:00:48]} 41... Kxc5 {[%clk
0:00:49.7]} 42. Ng3 {[%clk 0:00:49.9]} 42... Kb4 {[%clk 0:00:41.3]} 43. Ne2
{[%clk 0:00:48.6]} 43... Kc5 {[%clk 0:00:42]} 44. g4 {[%clk 0:00:49.3]} 44...
Ba4 {[%clk 0:00:36.7]} 45. b3 {[%clk 0:00:47.5]} 45... Bc6 {[%clk 0:00:31.2]}
46. Kg3 {[%clk 0:00:17.8]} 46... a5 {[%clk 0:00:28.4]} 47. h4 {[%clk 0:00:17.8]}
47... b5 {[%clk 0:00:28.2]} 48. hxg5 {[%clk 0:00:18.9]} 48... hxg5 {[%clk
0:00:29]} 49. Kf2 {[%clk 0:00:19.3]} 49... a4 {[%clk 0:00:28.2]} 50. bxa4 {[%clk
0:00:19.5]} 50... bxa4 {[%clk 0:00:29.4]} 51. Ke1 {[%clk 0:00:19.1]} 51... Bf3
{[%clk 0:00:25.8]} 52. Nc1 {[%clk 0:00:18.3]} 52... Bxg4 {[%clk 0:00:24.5]} 53.
Kd2 {[%clk 0:00:19.8]} 53... Kb4 {[%clk 0:00:20.5]} 54. c4 {[%clk 0:00:12]}
54... dxc3+ {[%clk 0:00:20.6]} 55. Kc2 {[%clk 0:00:13.9]} 55... Be6 {[%clk
0:00:19.2]} 56. d4 {[%clk 0:00:14.6]} 56... Bf5+ {[%clk 0:00:18.2]} 57. Kd1
{[%clk 0:00:15]} 57... Kc4 {[%clk 0:00:19]} 58. d5 {[%clk 0:00:16.2]} 58... Bg4+
{[%clk 0:00:15.9]} 59. Kc2 {[%clk 0:00:17.2]} 59... Bf5+ {[%clk 0:00:17.1]} 60.
Kd1 {[%clk 0:00:18.6]} 60... Kxd5 {[%clk 0:00:18.5]} 61. Na2 {[%clk 0:00:20]}
61... Kc4 {[%clk 0:00:18.5]} 62. Nc1 {[%clk 0:00:21]} 62... Bg4+ {[%clk
0:00:18]} 63. Kc2 {[%clk 0:00:22.1]} 63... Bf5+ {[%clk 0:00:17.6]} 64. Kd1
{[%clk 0:00:23.5]} 64... a3 {[%clk 0:00:18]} 65. Na2 {[%clk 0:00:24.3]} 65...
Kb3 {[%clk 0:00:17.2]} 66. Nc1+ {[%clk 0:00:25.5]} 66... Kb2 {[%clk 0:00:18.4]}
0-1

[Event "GrandPrix_30.05"]
[Site "Chess.com"]
[Date "2020.05.30"]
[Round "7"]
[White "Meizon19"]
[Black "woodhy"]
[Result "1-0"]
[WhiteElo "2312"]
[BlackElo "2169"]
[TimeControl "600+2"]
[EndTime "11:30:08 PDT"]
[Termination "Meizon19 won by checkmate"]

1. e4 {[%clk 0:10:01.9]} 1... e6 {[%clk 0:09:28]} 2. d4 {[%clk 0:10:02.3]} 2...
d5 {[%clk 0:09:26.9]} 3. Nc3 {[%clk 0:10:02.7]} 3... Bb4 {[%clk 0:09:25.5]} 4.
e5 {[%clk 0:10:02.9]} 4... c5 {[%clk 0:09:23.6]} 5. a3 {[%clk 0:10:03.3]} 5...
Bxc3+ {[%clk 0:09:22.7]} 6. bxc3 {[%clk 0:10:04.1]} 6... Ne7 {[%clk 0:09:17.5]}
7. Qg4 {[%clk 0:09:58.9]} 7... Qc7 {[%clk 0:09:15.2]} 8. Bd2 {[%clk 0:09:11.1]}
8... Nbc6 {[%clk 0:09:02.9]} 9. Nf3 {[%clk 0:09:07.4]} 9... Nf5 {[%clk
0:07:12.4]} 10. Bd3 {[%clk 0:08:46.3]} 10... Nce7 {[%clk 0:07:02.6]} 11. O-O
{[%clk 0:07:58]} 11... c4 {[%clk 0:07:00.8]} 12. Be2 {[%clk 0:07:52.7]} 12...
Bd7 {[%clk 0:06:59.5]} 13. Qh3 {[%clk 0:07:46.8]} 13... Nc6 {[%clk 0:06:19.6]}
14. g4 {[%clk 0:07:25.8]} 14... Nfe7 {[%clk 0:06:13.7]} 15. Ng5 {[%clk
0:07:01.9]} 15... h6 {[%clk 0:06:00.2]} 16. f4 {[%clk 0:06:59.3]} 16... Rg8
{[%clk 0:05:57]} 17. Nf3 {[%clk 0:06:47.5]} 17... O-O-O {[%clk 0:05:57.5]} 18.
Kh1 {[%clk 0:06:44.6]} 18... Rh8 {[%clk 0:05:37]} 19. Qg3 {[%clk 0:06:28.9]}
19... f5 {[%clk 0:05:34.3]} 20. gxf5 {[%clk 0:06:14.2]} 20... Nxf5 {[%clk
0:05:33]} 21. Qh3 {[%clk 0:06:15.5]} 21... g5 {[%clk 0:05:25.5]} 22. Rg1 {[%clk
0:06:08.8]} 22... gxf4 {[%clk 0:05:12.2]} 23. Bxf4 {[%clk 0:06:07.9]} 23... Rdf8
{[%clk 0:05:13.1]} 24. Bd2 {[%clk 0:06:03.4]} 24... Rfg8 {[%clk 0:04:53.1]} 25.
Nh4 {[%clk 0:05:54]} 25... Nce7 {[%clk 0:04:50.4]} 26. Bg4 {[%clk 0:05:44.8]}
26... Nxh4 {[%clk 0:04:01.3]} 27. Qxh4 {[%clk 0:05:45.4]} 27... Qd8 {[%clk
0:03:08.2]} 28. Raf1 {[%clk 0:05:27]} 28... h5 {[%clk 0:02:28.4]} 29. Bh3 {[%clk
0:05:18.5]} 29... Rxg1+ {[%clk 0:02:15.7]} 30. Rxg1 {[%clk 0:05:19.3]} 30... Rg8
{[%clk 0:01:22.3]} 31. Rxg8 {[%clk 0:05:06.2]} 31... Nxg8 {[%clk 0:01:24.2]} 32.
Qxh5 {[%clk 0:04:59.2]} 32... Qf8 {[%clk 0:01:23.9]} 33. Kg2 {[%clk 0:04:48]}
33... Qg7+ {[%clk 0:01:02.3]} 34. Qg5 {[%clk 0:04:44.9]} 34... Qh7 {[%clk
0:01:01.5]} 35. Bg4 {[%clk 0:04:23.3]} 35... Kc7 {[%clk 0:00:59.7]} 36. h4
{[%clk 0:04:21.4]} 36... Qxc2 {[%clk 0:00:58.3]} 37. h5 {[%clk 0:04:19.3]} 37...
Be8 {[%clk 0:00:40.2]} 38. Kg3 {[%clk 0:03:59.9]} 38... Qd3+ {[%clk 0:00:34.6]}
39. Bf3 {[%clk 0:03:43.1]} 39... Kd7 {[%clk 0:00:25.4]} 40. Qg7+ {[%clk
0:03:28.5]} 40... Kc6 {[%clk 0:00:16.4]} 41. Qxg8 {[%clk 0:03:25.7]} 41... Bxh5
{[%clk 0:00:15.4]} 42. Qxe6+ {[%clk 0:03:24.6]} 42... Kb5 {[%clk 0:00:11.6]} 43.
Qxd5+ {[%clk 0:03:17.2]} 43... Ka4 {[%clk 0:00:12.5]} 44. Qe4 {[%clk 0:03:06.3]}
44... Qxd2 {[%clk 0:00:09.6]} 45. Bxh5 {[%clk 0:03:07.1]} 45... Qxc3+ {[%clk
0:00:08.4]} 46. Bf3 {[%clk 0:03:08.2]} 46... Qxa3 {[%clk 0:00:08.5]} 47. Qxb7
{[%clk 0:03:04.6]} 47... a5 {[%clk 0:00:05.4]} 48. Kg4 {[%clk 0:03:03.6]} 48...
Qc1 {[%clk 0:00:03.9]} 49. Qc6+ {[%clk 0:02:43.9]} 49... Ka3 {[%clk 0:00:04]}
50. Qc5+ {[%clk 0:02:42.8]} 50... Kb2 {[%clk 0:00:04.5]} 51. Qb5+ {[%clk
0:02:36.4]} 51... Kc3 {[%clk 0:00:03.5]} 52. d5 {[%clk 0:02:32.6]} 52... Qg1+
{[%clk 0:00:03.8]} 53. Kf4 {[%clk 0:02:26]} 53... Qd4+ {[%clk 0:00:04.4]} 54.
Kf5 {[%clk 0:02:27]} 54... Qe3 {[%clk 0:00:04.7]} 55. Qxa5+ {[%clk 0:02:24.7]}
55... Kd3 {[%clk 0:00:05.5]} 56. Bh5 {[%clk 0:01:33.8]} 56... Qf2+ {[%clk
0:00:04.8]} 57. Ke6 {[%clk 0:01:32.7]} 57... Qh4 {[%clk 0:00:05.2]} 58. Bg6+
{[%clk 0:01:31.4]} 58... Kd4 {[%clk 0:00:05]} 59. Qb6+ {[%clk 0:01:27]} 59...
Kc3 {[%clk 0:00:05.8]} 60. Qe3+ {[%clk 0:01:27.1]} 60... Kb4 {[%clk 0:00:06.7]}
61. d6 {[%clk 0:01:25.4]} 61... Qg4+ {[%clk 0:00:04.2]} 62. Kf6 {[%clk
0:01:24.3]} 62... Qh4+ {[%clk 0:00:04.3]} 63. Kf7 {[%clk 0:01:25.1]} 63... Qg4
{[%clk 0:00:03.9]} 64. e6 {[%clk 0:01:24.2]} 64... c3 {[%clk 0:00:04.8]} 65.
Qe4+ {[%clk 0:01:24.2]} 65... Kb3 {[%clk 0:00:02.7]} 66. Qxg4 {[%clk 0:01:24.6]}
66... Kb2 {[%clk 0:00:03.6]} 67. Qe2+ {[%clk 0:01:24.4]} 67... Ka1 {[%clk
0:00:03.5]} 68. d7 {[%clk 0:01:17.5]} 68... c2 {[%clk 0:00:03.5]} 69. Bxc2
{[%clk 0:01:18.1]} 69... Kb2 {[%clk 0:00:03.8]} 70. d8=Q {[%clk 0:01:19.1]}
70... Kc1 {[%clk 0:00:04.8]} 71. Qdd2+ {[%clk 0:01:18.3]} 71... Kb2 {[%clk
0:00:04.7]} 72. Bg6+ {[%clk 0:01:19.2]} 72... Ka3 {[%clk 0:00:05.2]} 73. Qa6+
{[%clk 0:01:19.2]} 73... Kb3 {[%clk 0:00:05.8]} 74. Qaa2# {[%clk 0:01:16.2]} 1-0

[Event "GrandPrix_30.05"]
[Site "Chess.com"]
[Date "2020.05.30"]
[Round "7"]
[White "kirillshevchenko"]
[Black "mishikomchedlishvili"]
[Result "1/2-1/2"]
[WhiteElo "2656"]
[BlackElo "2575"]
[TimeControl "600+2"]
[EndTime "11:30:18 PDT"]
[Termination "Game drawn by repetition"]

1. e4 {[%clk 0:10:01.9]} 1... c5 {[%clk 0:09:59.7]} 2. Nf3 {[%clk 0:10:02.5]}
2... e6 {[%clk 0:10:00.3]} 3. d4 {[%clk 0:10:02.8]} 3... cxd4 {[%clk 0:10:01.2]}
4. Nxd4 {[%clk 0:10:04.7]} 4... Nf6 {[%clk 0:10:01.2]} 5. Nc3 {[%clk 0:10:05.1]}
5... d6 {[%clk 0:10:02.1]} 6. Be3 {[%clk 0:10:04.3]} 6... Be7 {[%clk 0:10:01.7]}
7. Be2 {[%clk 0:10:02.4]} 7... O-O {[%clk 0:09:57.6]} 8. Qd2 {[%clk 0:10:02.7]}
8... a6 {[%clk 0:09:34.9]} 9. O-O-O {[%clk 0:09:51.5]} 9... Nfd7 {[%clk
0:07:45.3]} 10. f4 {[%clk 0:09:42.7]} 10... b5 {[%clk 0:07:44.9]} 11. Bf3 {[%clk
0:08:41]} 11... Nb6 {[%clk 0:07:42.8]} 12. b3 {[%clk 0:07:08]} 12... Bb7 {[%clk
0:07:32.9]} 13. Qf2 {[%clk 0:06:58.9]} 13... N8d7 {[%clk 0:07:31.5]} 14. e5
{[%clk 0:06:57.5]} 14... d5 {[%clk 0:06:52.7]} 15. f5 {[%clk 0:06:11.3]} 15...
Qc8 {[%clk 0:05:54.5]} 16. Nde2 {[%clk 0:05:49.5]} 16... b4 {[%clk 0:05:17]} 17.
Nb1 {[%clk 0:05:35.6]} 17... Qc7 {[%clk 0:05:08]} 18. Bd4 {[%clk 0:04:24.6]}
18... Rac8 {[%clk 0:04:59.5]} 19. Ng3 {[%clk 0:03:56.2]} 19... Bc5 {[%clk
0:04:05.3]} 20. Bxc5 {[%clk 0:03:47.3]} 20... Qxc5 {[%clk 0:04:06.2]} 21. Qxc5
{[%clk 0:03:45.4]} 21... Nxc5 {[%clk 0:04:07.1]} 22. Kb2 {[%clk 0:03:36.7]}
22... Rc7 {[%clk 0:04:04.8]} 23. c3 {[%clk 0:03:16]} 23... a5 {[%clk 0:04:03.9]}
24. Rd4 {[%clk 0:03:17.4]} 24... Nbd7 {[%clk 0:03:49.2]} 25. Re1 {[%clk
0:03:08.2]} 25... Ba6 {[%clk 0:03:33.3]} 26. Re3 {[%clk 0:03:06.2]} 26... Rb8
{[%clk 0:03:27.6]} 27. Be2 {[%clk 0:02:47.5]} 27... Bxe2 {[%clk 0:03:18.9]} 28.
Nxe2 {[%clk 0:02:28.2]} 28... Ne4 {[%clk 0:03:02.2]} 29. cxb4 {[%clk 0:02:15.8]}
29... axb4 {[%clk 0:03:01.2]} 30. Nd2 {[%clk 0:02:08.7]} 30... Ndc5 {[%clk
0:02:10.3]} 31. Nf4 {[%clk 0:01:12.1]} 31... Rbc8 {[%clk 0:01:41.4]} 32. Nb1
{[%clk 0:00:31.2]} 32... Nd7 {[%clk 0:00:53.1]} 33. Re2 {[%clk 0:00:22.3]} 33...
Ndc5 {[%clk 0:00:25.7]} 34. Re3 {[%clk 0:00:20.6]} 34... g5 {[%clk 0:00:26.3]}
35. Nh5 {[%clk 0:00:16.9]} 35... Kf8 {[%clk 0:00:19.5]} 36. fxe6 {[%clk
0:00:16.6]} 36... fxe6 {[%clk 0:00:20.2]} 37. Rxb4 {[%clk 0:00:15.4]} 37... Nd7
{[%clk 0:00:20.2]} 38. Rf3+ {[%clk 0:00:10.8]} 38... Ke7 {[%clk 0:00:20.6]} 39.
Na3 {[%clk 0:00:03.7]} 39... Nxe5 {[%clk 0:00:21.1]} 40. Re3 {[%clk 0:00:05.1]}
40... Nc6 {[%clk 0:00:18.6]} 41. Rb6 {[%clk 0:00:04.4]} 41... Nd4 {[%clk
0:00:19.3]} 42. Ng3 {[%clk 0:00:05]} 42... Nxg3 {[%clk 0:00:19.4]} 43. hxg3
{[%clk 0:00:06.9]} 43... Rc1 {[%clk 0:00:11.2]} 44. Nb5 {[%clk 0:00:04.5]} 44...
R8c2+ {[%clk 0:00:10]} 45. Ka3 {[%clk 0:00:05.6]} 45... Nxb5+ {[%clk 0:00:11]}
46. Rxb5 {[%clk 0:00:06.7]} 46... Kd6 {[%clk 0:00:09.5]} 47. Kb4 {[%clk
0:00:05.3]} 47... Rxa2 {[%clk 0:00:09.7]} 48. Rb6+ {[%clk 0:00:06.3]} 48... Rc6
{[%clk 0:00:09.7]} 49. Rxc6+ {[%clk 0:00:07.5]} 49... Kxc6 {[%clk 0:00:10.9]}
50. Rxe6+ {[%clk 0:00:09.2]} 50... Kd7 {[%clk 0:00:12.2]} 51. Re5 {[%clk
0:00:07.1]} 51... Kd6 {[%clk 0:00:12.3]} 52. Rxg5 {[%clk 0:00:08.1]} 52... Rxg2
{[%clk 0:00:13.9]} 53. Kc3 {[%clk 0:00:08.3]} 53... h6 {[%clk 0:00:13.3]} 54.
Rg6+ {[%clk 0:00:06.6]} 54... Ke5 {[%clk 0:00:14.4]} 55. Kd3 {[%clk 0:00:04.7]}
55... Rb2 {[%clk 0:00:14.2]} 56. Rb6 {[%clk 0:00:04.4]} 56... h5 {[%clk
0:00:14.2]} 57. Rb8 {[%clk 0:00:05.4]} 57... Rg2 {[%clk 0:00:13.3]} 58. Re8+
{[%clk 0:00:06.3]} 58... Kd6 {[%clk 0:00:13.9]} 59. Rd8+ {[%clk 0:00:06.9]}
59... Kc5 {[%clk 0:00:14.5]} 60. Rc8+ {[%clk 0:00:06.8]} 60... Kd6 {[%clk
0:00:15.8]} 61. Rd8+ {[%clk 0:00:08]} 61... Ke6 {[%clk 0:00:17.1]} 62. Re8+
{[%clk 0:00:08.4]} 62... Kf5 {[%clk 0:00:15.7]} 63. Rf8+ {[%clk 0:00:07]} 63...
Ke5 {[%clk 0:00:16.8]} 64. Re8+ {[%clk 0:00:06.3]} 64... Kd6 {[%clk 0:00:17.9]}
65. Rd8+ {[%clk 0:00:07.5]} 1/2-1/2

[Event "GrandPrix_30.05"]
[Site "Chess.com"]
[Date "2020.05.30"]
[Round "7"]
[White "TheEternalPatzer"]
[Black "hypert"]
[Result "1/2-1/2"]
[WhiteElo "2053"]
[BlackElo "2146"]
[TimeControl "600+2"]
[EndTime "11:30:25 PDT"]
[Termination "Game drawn - insufficient material"]

1. c4 {[%clk 0:10:01.9]} 1... e5 {[%clk 0:10:00.5]} 2. Nc3 {[%clk 0:10:00.8]}
2... Nf6 {[%clk 0:10:01.6]} 3. Nf3 {[%clk 0:10:00.7]} 3... Nc6 {[%clk
0:10:01.6]} 4. e3 {[%clk 0:10:01.1]} 4... d5 {[%clk 0:10:01.6]} 5. cxd5 {[%clk
0:09:57.4]} 5... Nxd5 {[%clk 0:10:03.5]} 6. Bb5 {[%clk 0:09:57.5]} 6... Nxc3
{[%clk 0:10:04.4]} 7. bxc3 {[%clk 0:09:56.8]} 7... Bd6 {[%clk 0:10:05.8]} 8. d4
{[%clk 0:09:47.3]} 8... e4 {[%clk 0:10:04.7]} 9. Nd2 {[%clk 0:09:15.5]} 9... Qg5
{[%clk 0:10:02.6]} 10. Bf1 {[%clk 0:09:14.6]} 10... Qg6 {[%clk 0:09:59]} 11. g3
{[%clk 0:09:11.2]} 11... O-O {[%clk 0:09:46.2]} 12. Bg2 {[%clk 0:09:06.3]} 12...
f5 {[%clk 0:09:43.2]} 13. O-O {[%clk 0:08:54.6]} 13... Na5 {[%clk 0:09:37.6]}
14. c4 {[%clk 0:08:30.4]} 14... b6 {[%clk 0:09:21.1]} 15. Qc2 {[%clk 0:07:41.5]}
15... c5 {[%clk 0:09:09]} 16. dxc5 {[%clk 0:06:47.9]} 16... Bxc5 {[%clk
0:09:03]} 17. Nb3 {[%clk 0:06:45.4]} 17... Nxb3 {[%clk 0:08:52.4]} 18. axb3
{[%clk 0:06:45.6]} 18... a5 {[%clk 0:08:49.3]} 19. Bb2 {[%clk 0:06:36.5]} 19...
Be6 {[%clk 0:08:47.2]} 20. Rfd1 {[%clk 0:06:35.9]} 20... Qf7 {[%clk 0:08:40.3]}
21. Rd2 {[%clk 0:04:18.9]} 21... Rfc8 {[%clk 0:08:27.1]} 22. g4 {[%clk
0:03:55.7]} 22... b5 {[%clk 0:07:44]} 23. gxf5 {[%clk 0:03:52.5]} 23... Bxf5
{[%clk 0:07:42.4]} 24. Rd5 {[%clk 0:03:36.3]} 24... bxc4 {[%clk 0:06:07.1]} 25.
bxc4 {[%clk 0:03:23.4]} 25... Bb4 {[%clk 0:05:09.2]} 26. Rxf5 {[%clk 0:03:07.7]}
26... Qxf5 {[%clk 0:05:02.8]} 27. Bxe4 {[%clk 0:03:04.6]} 27... Qg4+ {[%clk
0:04:48.4]} 28. Kh1 {[%clk 0:03:04.3]} 28... Ra7 {[%clk 0:04:49.9]} 29. Rg1
{[%clk 0:02:47]} 29... Qh5 {[%clk 0:04:25.9]} 30. Qd3 {[%clk 0:02:40.4]} 30...
Bf8 {[%clk 0:03:44.3]} 31. f4 {[%clk 0:02:37.1]} 31... a4 {[%clk 0:03:14]} 32.
f5 {[%clk 0:02:16.7]} 32... a3 {[%clk 0:03:02.4]} 33. Bd4 {[%clk 0:02:16]} 33...
Rd7 {[%clk 0:02:20.5]} 34. Bd5+ {[%clk 0:02:13]} 34... Kh8 {[%clk 0:02:19.7]}
35. f6 {[%clk 0:02:01.1]} 35... Rcc7 {[%clk 0:01:40.8]} 36. Qe4 {[%clk
0:01:22.2]} 36... a2 {[%clk 0:01:20.1]} 37. Qe6 {[%clk 0:01:13.2]} 37... Rxd5
{[%clk 0:01:01.9]} 38. Qxd5 {[%clk 0:01:06.5]} 38... Qxd5+ {[%clk 0:00:54.4]}
39. cxd5 {[%clk 0:01:06.7]} 39... Rb7 {[%clk 0:00:48.8]} 40. d6 {[%clk 0:01:03]}
40... Bxd6 {[%clk 0:00:46]} 41. fxg7+ {[%clk 0:00:56.1]} 41... Kg8 {[%clk
0:00:46.4]} 42. Ra1 {[%clk 0:00:50.3]} 42... Rb1+ {[%clk 0:00:42.1]} 43. Kg2
{[%clk 0:00:51]} 43... Rxa1 {[%clk 0:00:36]} 44. Bxa1 {[%clk 0:00:50.8]} 44...
Kf7 {[%clk 0:00:37.4]} 45. h3 {[%clk 0:00:44.8]} 45... Be7 {[%clk 0:00:31.7]}
46. Kf3 {[%clk 0:00:42.8]} 46... Bg5 {[%clk 0:00:32.7]} 47. e4 {[%clk
0:00:22.5]} 47... Bh6 {[%clk 0:00:27.3]} 48. e5 {[%clk 0:00:16.7]} 48... Bxg7
{[%clk 0:00:18.6]} 49. Ke4 {[%clk 0:00:18.6]} 49... Ke6 {[%clk 0:00:19.4]} 50.
Bb2 {[%clk 0:00:15.9]} 50... Bf8 {[%clk 0:00:19.9]} 51. Kd3 {[%clk 0:00:12.3]}
51... Kd5 {[%clk 0:00:17.5]} 52. Kc2 {[%clk 0:00:11.9]} 52... Bg7 {[%clk
0:00:18.1]} 53. Kb3 {[%clk 0:00:10.9]} 53... Bxe5 {[%clk 0:00:17.7]} 54. Kxa2
{[%clk 0:00:12.8]} 54... h5 {[%clk 0:00:17.3]} 55. Bc1 {[%clk 0:00:10.7]} 55...
Ke4 {[%clk 0:00:16.7]} 56. Kb3 {[%clk 0:00:10.9]} 56... Kf3 {[%clk 0:00:18]} 57.
Kc4 {[%clk 0:00:09.7]} 57... Kg3 {[%clk 0:00:18]} 58. Kd5 {[%clk 0:00:10.1]}
58... Bf6 {[%clk 0:00:11.7]} 59. Ke4 {[%clk 0:00:09.8]} 59... Kxh3 {[%clk
0:00:12.4]} 60. Kf3 {[%clk 0:00:10.5]} 60... h4 {[%clk 0:00:13.1]} 61. Bf4
{[%clk 0:00:08.8]} 61... Bd8 {[%clk 0:00:13.3]} 62. Be5 {[%clk 0:00:09.1]} 62...
Be7 {[%clk 0:00:14.4]} 63. Bf4 {[%clk 0:00:09.7]} 63... Bd8 {[%clk 0:00:15.6]}
64. Be5 {[%clk 0:00:10.2]} 64... Ba5 {[%clk 0:00:15.5]} 65. Bf6 {[%clk
0:00:09.2]} 65... Be1 {[%clk 0:00:16.3]} 66. Bxh4 {[%clk 0:00:07]} 1/2-1/2